fUSD/lending_fUSD_20241001
["ID","MTS","AMOUNT","RATE_DAILY","PERIOD"]
[339668419,1727820760116,-865.43,0.00039452,120]
[339668420,1727820760125,-912.77,0.00039452,120]
[339668421,1727820760134,-503.29,0.00039452,120]
[339668422,1727820760143,-500.0,0.00039452,120]
[339668423,1727820760152,-538.32,0.00039452,120]
[339668424,1727820760161,-500.0,0.00039452,120]
[339668425,1727820760170,-1232.27,0.00039452,120]
[339668426,1727820760179,-612.63,0.00039452,120]
[339668427,1727820760189,-727.23,0.00039452,120]
[339668428,1727820760198,-500.0,0.00039452,120]
[339668429,1727820760206,-500.0,0.00039452,120]
[339668430,1727820760215,-2434.31,0.00039452,120]
[339668431,1727820760225,-1123.1,0.00039452,120]
[339668432,1727820760234,-500.0,0.00039452,120]
[339668433,1727820760243,-500.0,0.00039452,120]
[339668434,1727820760252,-609.21,0.00039452,120]
[339668435,1727820760261,-20000.0,0.00039452,2]
[339668436,1727820760270,-726.12,0.00039452,120]
[339668437,1727820760278,-639.42,0.00039452,120]
[339668438,1727820760288,-500.0,0.00039452,120]
[339668439,1727820760297,-909.97,0.00039452,120]
[339668440,1727820760306,-500.0,0.00039452,120]
[339668441,1727820760315,-500.0,0.00039452,120]
[339668442,1727820760324,-2645.4,0.00039452,120]
[339668443,1727820760333,-1769.05,0.00039452,120]
[339668444,1727820760342,-719.11,0.00039452,120]
[339668445,1727820760351,-908.05,0.00039452,120]
[339668446,1727820760360,-500.0,0.00039452,120]
[339668447,1727820760369,-500.0,0.00039452,120]
[339668448,1727820760378,-500.0,0.00039452,120]
[339668449,1727820760387,-500.0,0.00039452,120]
[339668450,1727820760397,-1353.18,0.00039452,120]
[339668451,1727820760406,-500.0,0.00039452,120]
[339668452,1727820760415,-1681.46,0.00039452,120]
[339668453,1727820760425,-500.0,0.00039452,120]
[339668454,1727820760434,-500.0,0.00039452,120]
[339668455,1727820760443,-574.63,0.00039452,120]
[339668456,1727820760452,-1427.27,0.00039452,120]
[339668457,1727820760461,-1194.08,0.00039452,120]
[339668458,1727820760471,-1852.67,0.00039452,120]
[339668459,1727820760481,-1271.22,0.00039452,120]
[339668460,1727820760490,-578.88,0.00039452,120]
[339668461,1727820760499,-1006.55,0.00039452,120]
[339668462,1727820760508,-155.46566646,0.00039452,120]
[339668463,1727820760518,-1067.38,0.00039452,120]
[339668464,1727820760527,-500.0,0.00039452,120]
[339668465,1727820760537,-500.0,0.00039452,120]
[339668466,1727820760555,-2065.44,0.00039452,120]
[339668467,1727820760564,-997.79,0.00039452,120]
[339668468,1727820760574,-676.91,0.00039452,120]
[339668469,1727820760583,-500.0,0.00039452,120]
[339668470,1727820760592,-500.0,0.00039452,120]
[339668471,1727820760601,-500.0,0.00039452,120]
[339668472,1727820760610,-500.0,0.00039452,120]
[339668473,1727820760620,-500.0,0.00039452,120]
[339668474,1727820760629,-1299.08,0.00039452,120]
[339668475,1727820760639,-500.0,0.00039452,120]
[339668476,1727820760650,-7133.94,0.00039452,120]
[339668477,1727820760660,-876.55,0.00039452,120]
[339668478,1727820760669,-2948.18,0.00039452,120]
[339668479,1727820760679,-500.0,0.00039452,120]
[339668480,1727820760689,-500.0,0.00039452,120]
[339668481,1727820760699,-500.0,0.00039452,120]
[339668482,1727820760708,-1297.59,0.00039452,120]
[339668483,1727820760718,-500.0,0.00039452,120]
[339668484,1727820760729,-500.0,0.00039452,120]
[339668485,1727820760740,-500.0,0.00039452,120]
[339668486,1727820760750,-3085.28,0.00039452,120]
[339668487,1727820760759,-1540.7,0.00039452,120]
[339668488,1727820760769,-835.52,0.00039452,120]
[339668489,1727820760778,-1360.6,0.00039452,120]
[339668490,1727820760792,-2073.43,0.00039452,120]
[339668491,1727820760801,-500.0,0.00039452,120]
[339668492,1727820760811,-500.0,0.00039452,120]
[339668493,1727820760820,-500.0,0.00039452,120]
[339668494,1727820760829,-500.0,0.00039452,120]
[339668495,1727820760839,-500.0,0.00039452,120]
[339668496,1727820760849,-920.24,0.00039452,120]
[339668497,1727820760859,-1196.56,0.00039452,120]
[339668498,1727820760869,-500.0,0.00039452,120]
[339668499,1727820760878,-1565.97,0.00039452,7]
[339668500,1727820760887,-2161.41,0.00039452,120]
[339668501,1727820760897,-682.18,0.00039452,120]
[339668502,1727820760906,-500.0,0.00039452,120]
[339668503,1727820760915,-984.06,0.00039452,120]
[339668504,1727820760925,-893.82,0.00039452,120]
[339668505,1727820760934,-614.76,0.00039452,120]
[339668506,1727820760944,-500.0,0.00039452,120]
[339668507,1727820760954,-556.32,0.00039452,120]
[339668508,1727820760964,-4017.33,0.00039452,120]
[339668509,1727820760974,-1530.83,0.00039452,120]
[339668510,1727820760984,-500.35226727,0.00039452,120]
[339668511,1727820760994,-500.0,0.00039452,120]
[339668512,1727820761003,-500.0,0.00039452,120]
[339668513,1727820761013,-2813.32,0.00039452,120]
[339668514,1727820761023,-989.03,0.00039452,120]
[339668515,1727820761037,-500.0,0.00039452,120]
[339668516,1727820761047,-1381.53,0.00039452,120]
[339668517,1727820761056,-500.0,0.00039452,120]
[339668518,1727820761066,-500.0,0.00039452,120]
[339668519,1727820761075,-625.33,0.00039452,120]
[339668520,1727820761084,-500.0,0.00039452,120]
[339668521,1727820761093,-500.0,0.00039452,120]
[339668522,1727820761103,-3207.82,0.00039452,120]
[339668523,1727820761113,-529.0,0.00039452,120]
[339668524,1727820761123,-500.0,0.00039452,120]
[339668525,1727820761133,-500.0,0.00039452,120]
[339668526,1727820761142,-1336.39,0.00039452,120]
[339668527,1727820761152,-1417.06,0.00039452,120]
[339668528,1727820761162,-500.0,0.00039452,120]
[339668529,1727820761171,-691.8,0.00039452,120]
[339668530,1727820761180,-829.5,0.00039452,120]
[339668531,1727820761189,-1750.69,0.00039452,120]
[339668532,1727820761199,-1683.2,0.00039452,120]
[339668533,1727820761208,-518.37,0.00039452,120]
[339668534,1727820761217,-500.0,0.00039452,120]
[339668535,1727820761226,-500.0,0.00039452,120]
[339668536,1727820761236,-565.37,0.00039452,120]
[339668537,1727820761245,-500.0,0.00039452,120]
[339668538,1727820761255,-1040.53,0.00039452,120]
[339668539,1727820761265,-500.0,0.00039452,120]
[339668540,1727820761275,-500.0,0.00039452,120]
[339668541,1727820761289,-2903.08,0.00039452,120]
[339668542,1727820761299,-1019.42,0.00039452,120]
[339668543,1727820761308,-500.0,0.00039452,120]
[339668544,1727820761317,-502.27926526,0.00039452,120]
[339668545,1727820761327,-685.88,0.00039452,120]
[339668546,1727820761337,-3679.16,0.00039452,120]
[339668547,1727820761346,-1591.74,0.00039452,120]
[339668548,1727820761356,-509.48,0.00039452,120]
[339668549,1727820761365,-500.0,0.00039452,120]
[339668550,1727820761374,-500.0,0.00039452,120]
[339668551,1727820761383,-931.69,0.00039452,120]
[339668552,1727820761393,-497.47516061,0.00039452,120]
[339668553,1727820761403,-537.33452894,0.00039452,120]
[339668554,1727820761413,-846.41,0.00039452,120]
[339668555,1727820761421,-500.0,0.00039452,120]
[339668556,1727820761430,-500.0,0.00039452,120]
[339668557,1727820761439,-579.38,0.00039452,120]
[339668558,1727820761449,-500.0,0.00039452,120]
[339668559,1727820761458,-500.0,0.00039452,120]
[339668560,1727820761468,-658.41,0.00039452,120]
[339668561,1727820761477,-500.0,0.00039452,120]
[339668562,1727820761487,-938.76,0.00039452,120]
[339668563,1727820761496,-500.0,0.00039452,120]
[339668564,1727820761506,-500.0,0.00039452,120]
[339668565,1727820761516,-535.34,0.00039452,120]
[339668566,1727820761525,-633.77,0.00039452,120]
[339668567,1727820761538,-1178.43,0.00039452,120]
[339668568,1727820761547,-631.01,0.00039452,120]
[339668569,1727820761556,-500.0,0.00039452,120]
[339668570,1727820761565,-500.0,0.00039452,120]
[339668571,1727820761575,-4318.07,0.00039452,120]
[339668572,1727820761585,-1300.84,0.00039452,120]
[339668573,1727820761595,-1477.24,0.00039452,120]
[339668574,1727820761605,-649.66,0.00039452,120]
[339668575,1727820761614,-790.35,0.00039452,120]
[339668576,1727820761624,-3571.84,0.00039452,24]
[339668577,1727820761634,-500.0,0.00039452,120]
[339668578,1727820761645,-304.38152485,0.00039452,120]
[339668579,1727820761657,-500.0,0.00039452,120]
[339668580,1727820761666,-500.0,0.00039452,120]
[339668581,1727820761676,-2269.39,0.00039452,120]
[339668582,1727820761686,-509.05,0.00039452,120]
[339668583,1727820761697,-950.35,0.00039452,14]
[339668584,1727820761706,-906.26,0.00039452,120]
[339668585,1727820761717,-695.43,0.00039452,120]
[339668586,1727820761835,-500.0,0.00039452,120]
[339668587,1727820761848,-501.47683987,0.00039452,120]
[339668588,1727820761857,-5863.43,0.00039452,120]
[339668589,1727820761867,-500.0,0.00039452,120]
[339668590,1727820761876,-1343.7,0.00039452,120]
[339668591,1727820761886,-500.0,0.00039452,120]
[339668592,1727820761895,-500.0,0.00039452,120]
[339668593,1727820761904,-500.0,0.00039452,120]
[339668594,1727820761914,-500.0,0.00039452,120]
[339668595,1727820761924,-500.0,0.00039452,2]
[339668596,1727820761933,-1433.18,0.00039452,120]
[339668597,1727820761943,-185.34039854,0.00039452,120]
[339668598,1727820761952,-212.25468897,0.00039452,120]
[339668599,1727820761961,-2892.65,0.00039452,120]
[339668600,1727820761977,-2031.89,0.00039452,120]
[339668601,1727820761991,-1519.54,0.00039452,120]
[339668602,1727820762001,-558.87,0.00039452,120]
[339668603,1727820762011,-500.0,0.00039452,120]
[339668604,1727820762022,-500.0,0.00039452,120]
[339668605,1727820762033,-5052.98,0.00039452,120]
[339668606,1727820762043,-2464.24,0.00039452,120]
[339668607,1727820762054,-500.0,0.00039452,120]
[339668608,1727820762064,-642.05,0.00039452,120]
[339668609,1727820762075,-598.73,0.00039452,120]
[339668610,1727820762085,-581.71,0.00039452,120]
[339668611,1727820762096,-1855.45,0.00039452,120]
[339668612,1727820762106,-1193.22,0.00039452,120]
[339668613,1727820762116,-2055.41,0.00039452,120]
[339668614,1727820762127,-500.0,0.00039452,120]
[339668615,1727820762137,-500.0,0.00039452,120]
[339668616,1727820762148,-750.15,0.00039452,120]
[339668617,1727820762158,-2691.72,0.00039452,120]
[339668618,1727820762169,-500.0,0.00039452,120]
[339668619,1727820762179,-500.0,0.00039452,120]
[339668620,1727820762189,-548.81,0.00039452,120]
[339668621,1727820762199,-6652.18,0.00039452,120]
[339668622,1727820762210,-500.0,0.00039452,120]
[339668623,1727820762220,-513.2,0.00039452,120]
[339668624,1727820762230,-500.0,0.00039452,120]
[339668625,1727820762241,-1189.34,0.00039452,120]
[339668626,1727820762251,-806.35,0.00039452,120]
[339668627,1727820762261,-4738.33,0.00039452,120]
[339668628,1727820762271,-500.0,0.00039452,120]
[339668629,1727820762282,-500.0,0.00039452,120]
[339668630,1727820762291,-500.0,0.00039452,120]
[339668631,1727820762301,-500.66028234,0.00039452,120]
[339668632,1727820762311,-917.73,0.00039452,120]
[339668633,1727820762321,-500.0,0.00039452,120]
[339668634,1727820762332,-500.0,0.00039452,120]
[339668635,1727820762342,-533.87,0.00039452,120]
[339668636,1727820762352,-500.0,0.00039452,120]
[339668637,1727820762362,-500.0,0.00039452,120]
[339668638,1727820762371,-945.7,0.00039452,120]
[339668639,1727820762381,-5194.61,0.00039452,120]
[339668640,1727820762391,-500.0,0.00039452,120]
[339668641,1727820762401,-1116.02,0.00039452,120]
[339668642,1727820762410,-500.0,0.00039452,120]
[339668643,1727820762420,-832.73,0.00039452,120]
[339668644,1727820762430,-500.0,0.00039452,120]
[339668645,1727820762440,-500.0,0.00039452,120]
[339668646,1727820762450,-500.0,0.00039452,120]
[339668647,1727820762460,-2703.66,0.00039452,120]
[339668648,1727820762469,-902.25,0.00039452,120]
[339668649,1727820762480,-1320.9,0.00039452,120]
[339668650,1727820762490,-500.0,0.00039452,120]
[339668651,1727820762500,-659.17,0.00039452,120]
[339668652,1727820762510,-2578.82,0.00039452,120]
[339668653,1727820762521,-1704.81,0.00039452,120]
[339668654,1727820762532,-500.0,0.00039452,120]
[339668655,1727820762542,-1586.77,0.00039452,120]
[339668656,1727820762552,-1388.49,0.00039452,120]
[339668657,1727820762562,-834.76,0.00039452,120]
[339668658,1727820762572,-500.0,0.00039452,120]
[339668659,1727820762582,-944.31,0.00039452,120]
[339668660,1727820762592,-500.0,0.00039452,120]
[339668661,1727820762602,-500.0,0.00039452,120]
[339668662,1727820762612,-500.0,0.00039452,120]
[339668663,1727820762623,-500.0,0.00039452,120]
[339668664,1727820762632,-500.0,0.00039452,120]
[339668665,1727820762643,-793.38,0.00039452,120]
[339668666,1727820762657,-500.0,0.00039452,120]
[339668667,1727820762667,-503.94559758,0.00039452,120]
[339668668,1727820762677,-500.0,0.00039452,120]
[339668669,1727820762687,-2627.22,0.00039452,120]
[339668670,1727820762698,-1639.8,0.00039452,120]
[339668671,1727820762708,-500.0,0.00039452,120]
[339668672,1727820762718,-725.25,0.00039452,120]
[339668673,1727820762728,-1519.29,0.00039452,120]
[339668674,1727820762738,-500.0,0.00039452,120]
[339668675,1727820762748,-3122.29,0.00039452,120]
[339668676,1727820762758,-5376.69,0.00039452,120]
[339668677,1727820762767,-957.13,0.00039452,120]
[339668678,1727820762776,-574.08378826,0.00039452,120]
[339668679,1727820762787,-500.0,0.00039452,120]
[339668680,1727820762797,-2668.85,0.00039452,120]
[339668681,1727820762807,-742.86,0.00039452,120]
[339668682,1727820762816,-500.0,0.00039452,120]
[339668683,1727820762826,-500.0,0.00039452,120]
[339668684,1727820762835,-842.39,0.00039452,120]
[339668685,1727820762844,-1188.41,0.00039452,120]
[339668686,1727820762854,-500.0,0.00039452,120]
[339668687,1727820762864,-977.8,0.00039452,120]
[339668688,1727820762874,-1574.81,0.00039452,120]
[339668689,1727820762883,-500.0,0.00039452,120]
[339668690,1727820762892,-3167.05,0.00039452,120]
[339668691,1727820762902,-835.75,0.00039452,120]
[339668692,1727820762912,-500.0,0.00039452,120]
[339668693,1727820762921,-500.0,0.00039452,120]
[339668694,1727820762931,-592.48,0.00039452,120]
[339668695,1727820762940,-518.33087238,0.00039452,120]
[339668696,1727820762949,-767.06,0.00039452,120]
[339668697,1727820762959,-500.0,0.00039452,120]
[339668698,1727820762968,-500.0,0.00039452,120]
[339668699,1727820762978,-1332.74,0.00039452,120]
[339668700,1727820762987,-1628.64,0.00039452,120]
[339668701,1727820762997,-500.0,0.00039452,120]
[339668702,1727820763007,-891.92,0.00039452,120]
[339668703,1727820763017,-879.96,0.00039452,120]
[339668704,1727820763026,-870.15,0.00039452,120]
[339668705,1727820763037,-3053.04,0.00039452,120]
[339668706,1727820763046,-500.0,0.00039452,120]
[339668707,1727820763058,-500.0,0.00039452,120]
[339668708,1727820763067,-500.0,0.00039452,120]
[339668709,1727820763076,-500.0,0.00039452,120]
[339668710,1727820763086,-1765.25,0.00039452,120]
[339668711,1727820763095,-500.0,0.00039452,120]
[339668712,1727820763105,-2848.92,0.00039452,120]
[339668713,1727820763115,-500.0,0.00039452,120]
[339668714,1727820763124,-2618.25,0.00039452,120]
[339668715,1727820763134,-733.76,0.00039452,120]
[339668716,1727820763144,-500.0,0.00039452,120]
[339668717,1727820763153,-1452.8,0.00039452,120]
[339668718,1727820763163,-922.35,0.00039452,2]
[339668719,1727820763172,-745.69,0.00039452,120]
[339668720,1727820763182,-515.59,0.00039452,120]
[339668721,1727820763191,-504.12,0.00039452,120]
[339668722,1727820763201,-748.91,0.00039452,30]
[339668723,1727820763210,-5228.9,0.00039452,120]
[339668724,1727820763220,-500.0,0.00039452,120]
[339668725,1727820763231,-500.0,0.00039452,120]
[339668726,1727820763240,-1099.12,0.00039452,120]
[339668727,1727820763250,-500.0,0.00039452,120]
[339668728,1727820763259,-925.91,0.00039452,120]
[339668729,1727820763269,-3838.42,0.00039452,120]
[339668730,1727820763279,-500.0,0.00039452,120]
[339668731,1727820763292,-562.84,0.00039452,120]
[339668732,1727820763309,-983.15,0.00039452,120]
[339668733,1727820763318,-585.77,0.00039452,120]
[339668734,1727820763328,-930.9,0.00039452,120]
[339668735,1727820763337,-500.0,0.00039452,120]
[339668736,1727820763347,-500.0,0.00039452,120]
[339668737,1727820763355,-1347.98,0.00039452,120]
[339668738,1727820763365,-2842.0,0.00039452,120]
[339668739,1727820763375,-500.0,0.00039452,120]
[339668740,1727820763384,-2740.56,0.00039452,120]
[339668741,1727820763394,-1496.77,0.00039452,15]
[339668742,1727820763404,-500.0,0.00039452,120]
[339668743,1727820763413,-678.65,0.00039452,120]
[339668744,1727820763423,-1862.99,0.00039452,120]
[339668745,1727820763433,-500.0,0.00039452,120]
[339668746,1727820763442,-500.0,0.00039452,120]
[339668747,1727820763450,-1682.2,0.00039452,120]
[339668748,1727820763460,-1067.94,0.00039452,120]
[339668749,1727820763469,-471.35415354,0.00039452,120]
[339668750,1727820763479,-871.43,0.00039452,120]
[339668751,1727820763489,-500.0,0.00039452,120]
[339668752,1727820763499,-500.0,0.00039452,120]
[339668753,1727820763509,-625.16,0.00039452,120]
[339668754,1727820763518,-500.0,0.00039452,120]
[339668755,1727820763527,-1931.66,0.00039452,120]
[339668756,1727820763540,-1349.45,0.00039452,120]
[339668757,1727820763550,-1300.41,0.00039452,120]
[339668758,1727820763559,-500.0,0.00039452,120]
[339668759,1727820763569,-3574.07,0.00039452,120]
[339668760,1727820763578,-500.0,0.00039452,120]
[339668761,1727820763588,-920.76,0.00039452,120]
[339668762,1727820763597,-3172.4,0.00039452,120]
[339668763,1727820763607,-500.0,0.00039452,120]
[339668764,1727820763616,-1193.1,0.00039452,120]
[339668765,1727820763626,-500.0,0.00039452,120]
[339668766,1727820763635,-1476.53,0.00039452,120]
[339668767,1727820763646,-500.0,0.00039452,120]
[339668768,1727820763658,-1359.38,0.00039452,120]
[339668769,1727820763667,-500.0,0.00039452,120]
[339668770,1727820763677,-1219.73,0.00039452,120]
[339668771,1727820763687,-983.64,0.00039452,120]
[339668772,1727820763697,-500.0,0.00039452,120]
[339668773,1727820763706,-856.28,0.00039452,120]
[339668774,1727820763715,-1226.11,0.00039452,120]
[339668775,1727820763726,-3907.21,0.00039452,120]
[339668776,1727820763735,-2101.16,0.00039452,120]
[339668777,1727820763744,-663.63,0.00039452,120]
[339668778,1727820763754,-500.0,0.00039452,120]
[339668779,1727820763763,-500.0,0.00039452,120]
[339668780,1727820763772,-5292.68,0.00039452,120]
[339668781,1727820763781,-2234.39,0.00039452,120]
[339668782,1727820763793,-500.0,0.00039452,120]
[339668783,1727820763802,-1469.82,0.00039452,120]
[339668784,1727820763811,-500.0,0.00039452,120]
[339668785,1727820763821,-500.0,0.00039452,120]
[339668786,1727820763830,-1070.08,0.00039452,120]
[339668787,1727820763839,-500.0,0.00039452,120]
[339668788,1727820763848,-500.0,0.00039452,120]
[339668789,1727820763857,-1923.04,0.00039452,120]
[339668790,1727820763866,-500.0,0.00039452,120]
[339668791,1727820763875,-857.77,0.00039452,120]
[339668792,1727820763884,-2261.0,0.00039452,120]
[339668793,1727820763893,-1062.38,0.00039452,120]
[339668794,1727820763902,-500.0,0.00039452,120]
[339668795,1727820763911,-500.0,0.00039452,120]
[339668796,1727820763921,-1358.61,0.00039452,120]
[339668797,1727820763930,-907.03,0.00039452,120]
[339668798,1727820763939,-4156.88,0.00039452,120]
[339668799,1727820763949,-528.25,0.00039452,120]
[339668800,1727820763958,-1099.94,0.00039452,120]
[339668801,1727820763968,-500.0,0.00039452,120]
[339668802,1727820763976,-660.82,0.00039452,120]
[339668803,1727820763986,-3441.48,0.00039452,7]
[339668804,1727820763995,-2560.29,0.00039452,120]
[339668805,1727820764004,-580.8,0.00039452,120]
[339668806,1727820764319,-500.0,0.00039452,120]
[339668807,1727820764361,-985.41,0.00039452,120]
[339668808,1727820764371,-1225.48,0.00039452,120]
[339668809,1727820764381,-1575.11,0.00039452,120]
[339668810,1727820764390,-500.0,0.00039452,120]
[339668811,1727820764399,-967.16,0.00039452,120]
[339668812,1727820764409,-1027.36,0.00039452,120]
[339668813,1727820764418,-2849.3,0.00039452,120]
[339668814,1727820764427,-1745.08,0.00039452,120]
[339668815,1727820764437,-705.04,0.00039452,120]
[339668816,1727820764447,-500.0,0.00039452,120]
[339668817,1727820764456,-529.51,0.00039452,120]
[339668818,1727820764465,-500.0,0.00039452,120]
[339668819,1727820764475,-500.0,0.00039452,120]
[339668820,1727820764485,-1708.87,0.00039452,120]
[339668821,1727820764495,-500.0,0.00039452,120]
[339668822,1727820764505,-3262.83,0.00039452,120]
[339668823,1727820764515,-500.0,0.00039452,90]
[339668824,1727820764525,-853.84,0.00039452,120]
[339668825,1727820764535,-5703.42,0.00039452,120]
[339668826,1727820764544,-3136.81,0.00039452,120]
[339668827,1727820764554,-500.0,0.00039452,120]
[339668828,1727820764563,-4081.48,0.00039452,120]
[339668829,1727820764573,-500.0,0.00039452,120]
[339668830,1727820764583,-2086.44,0.00039452,120]
[339668831,1727820764593,-3712.01,0.00039452,120]
[339668832,1727820764603,-871.7,0.00039452,120]
[339668833,1727820764613,-500.0,0.00039452,120]
[339668834,1727820764623,-500.0,0.00039452,120]
[339668835,1727820764632,-634.09,0.00039452,120]
[339668836,1727820764642,-500.0,0.00039452,120]
[339668837,1727820764655,-2173.94,0.00039452,120]
[339668838,1727820764665,-232.55371511,0.00039452,120]
[339668839,1727820764675,-975.58,0.00039452,120]
[339668840,1727820764684,-500.0,0.00039452,120]
[339668841,1727820764694,-1402.75,0.00039452,120]
[339668842,1727820764704,-500.0,0.00039452,120]
[339668843,1727820764714,-880.81,0.00039452,120]
[339668844,1727820764724,-2426.66,0.00039452,120]
[339668845,1727820764734,-902.4,0.00039452,120]
[339668846,1727820764744,-500.0,0.00039452,120]
[339668847,1727820764754,-666.13,0.00039452,120]
[339668848,1727820764764,-500.0,0.00039452,120]
[339668849,1727820764774,-500.0,0.00039452,120]
[339668850,1727820764785,-500.0,0.00039452,120]
[339668851,1727820764794,-1238.19,0.00039452,120]
[339668852,1727820764804,-500.0,0.00039452,120]
[339668853,1727820764814,-907.98,0.00039452,120]
[339668854,1727820764824,-2210.55,0.00039452,120]
[339668855,1727820764833,-308.12015632,0.00039452,120]
[339668856,1727820764842,-1798.18,0.00039452,120]
[339668857,1727820764852,-500.0,0.00039452,120]
[339668858,1727820764862,-2470.03,0.00039452,120]
[339668859,1727820764871,-500.0,0.00039452,120]
[339668860,1727820764881,-500.0,0.00039452,120]
[339668861,1727820764890,-996.57,0.00039452,120]
[339668862,1727820764899,-2061.0,0.00039452,120]
[339668863,1727820764908,-500.0,0.00039452,120]
[339668864,1727820764918,-500.0,0.00039452,120]
[339668865,1727820764927,-500.0,0.00039452,120]
[339668866,1727820764937,-602.42,0.00039452,120]
[339668867,1727820764946,-500.0,0.00039452,120]
[339668868,1727820764957,-1172.0,0.00039452,120]
[339668869,1727820764967,-1419.38,0.00039452,120]
[339668870,1727820764978,-3467.23,0.00039452,120]
[339668871,1727820764987,-1691.93,0.00039452,120]
[339668872,1727820764997,-500.0,0.00039452,120]
[339668873,1727820765007,-500.0,0.00039452,120]
[339668874,1727820765016,-500.0,0.00039452,120]
[339668875,1727820765025,-4101.04,0.00039452,120]
[339668876,1727820765035,-500.0,0.00039452,120]
[339668877,1727820765044,-677.33,0.00039452,120]
[339668878,1727820765053,-833.05,0.00039452,120]
[339668879,1727820765062,-500.0,0.00039452,120]
[339668880,1727820765071,-3464.91,0.00039452,2]
[339668881,1727820765081,-1956.73,0.00039452,120]
[339668882,1727820765090,-1946.23,0.00039452,120]
[339668883,1727820765099,-617.9,0.00039452,120]
[339668884,1727820765108,-1639.32,0.00039452,120]
[339668885,1727820765117,-2100.71,0.00039452,120]
[339668886,1727820765127,-500.0,0.00039452,120]
[339668887,1727820765136,-1660.84,0.00039452,120]
[339668888,1727820765145,-2862.61,0.00039452,120]
[339668889,1727820765155,-500.0,0.00039452,120]
[339668890,1727820765164,-500.0,0.00039452,120]
[339668891,1727820765173,-500.0,0.00039452,7]
[339668892,1727820765182,-500.0,0.00039452,120]
[339668893,1727820765192,-500.0,0.00039452,120]
[339668894,1727820765201,-500.0,0.00039452,120]
[339668895,1727820765211,-2844.86,0.00039452,120]
[339668896,1727820765221,-1513.2,0.00039452,120]
[339668897,1727820765232,-1836.7,0.00039452,120]
[339668898,1727820765242,-1702.59,0.00039452,120]
[339668899,1727820765252,-500.0,0.00039452,120]
[339668900,1727820765261,-500.0,0.00039452,120]
[339668901,1727820765271,-500.0,0.00039452,120]
[339668902,1727820765280,-562.19,0.00039452,120]
[339668903,1727820765292,-4515.07,0.00039452,120]
[339668904,1727820765301,-527.16,0.00039452,120]
[339668905,1727820765311,-2408.38,0.00039452,120]
[339668906,1727820765320,-713.01,0.00039452,120]
[339668907,1727820765331,-1779.61,0.00039452,120]
[339668908,1727820765340,-1463.81,0.00039452,120]
[339668909,1727820765350,-754.74,0.00039452,120]
[339668910,1727820765360,-1385.69,0.00039452,120]
[339668911,1727820765369,-909.5,0.00039452,120]
[339668912,1727820765378,-500.0,0.00039452,120]
[339668913,1727820765387,-500.0,0.00039452,120]
[339668914,1727820765396,-727.88,0.00039452,120]
[339668915,1727820765406,-500.0,0.00039452,120]
[339668916,1727820765415,-500.0,0.00039452,120]
[339668917,1727820765425,-565.09,0.00039452,120]
[339668918,1727820765434,-1971.06,0.00039452,120]